bitfinex-derivatives/quotes_SOLF0:USTF0_20260304
["timestamp","ask_amount","ask_price","bid_price","bid_amount"]
[1772621511382,4.19108448,90.46,90.369,27.2908765]
[1772621511983,4.19108448,90.46,90.371,27.29134727]
[1772621512588,11.06,90.496,90.34,4.19108448]
[1772621512589,9.949,90.457,90.377,27.29134727]
[1772621513190,9.95,90.443,90.377,27.29134727]
[1772621513390,4.19108448,90.46,90.377,27.29134727]
[1772621513590,9.954,90.411,90.341,27.13279991]
[1772621515293,4.19108448,90.44,90.3,4.19108448]
[1772621515294,9.953,90.421,90.343,27.11979564]
[1772621515490,4.19108448,90.44,90.343,27.11979564]
[1772621516595,9.954,90.408,90.343,27.11979564]
[1772621517296,9.953,90.419,90.343,27.11979564]
[1772621518098,9.953,90.419,90.345,27.1182446]
[1772621518291,9.953,90.414,90.345,27.1182446]
[1772621518794,11.06,90.418,90.345,27.1182446]
[1772621519195,9.956,90.393,90.345,27.1182446]
[1772621519590,11.06,90.419,90.345,27.1182446]
[1772621520492,9.955,90.404,90.345,27.1182446]
[1772621522200,9.956,90.395,90.345,27.1182446]
[1772621523698,9.956,90.395,90.328,27.01733254]
[1772621523998,9.954,90.405,90.328,27.01733254]
[1772621524191,4.19108448,90.42,90.328,27.01733254]
[1772621524396,11.06,90.419,90.328,27.01733254]
[1772621524596,11.06,90.399,90.328,27.01733254]
[1772621524797,4.19108448,90.39,90.261,27.01384645]
[1772621525197,9.96,90.353,90.279,27.01384645]
[1772621525397,4.19108448,90.39,90.279,27.01384645]
[1772621525696,11.06,90.396,90.292,27.01539543]
[1772621526098,4.19108448,90.38,90.292,27.01539543]
[1772621526497,10.15454137,90.392,90.292,27.01539543]
[1772621526695,4.19108448,90.39,90.292,27.01539543]
[1772621527908,4.19108448,90.4,90.302,26.97662996]
[1772621528603,11.06,90.399,90.302,26.97662996]
[1772621528813,11.06,90.379,90.302,26.97662996]
[1772621529503,9.959,90.366,90.302,26.97662996]
[1772621529704,10.15454137,90.403,90.302,26.97662996]
[1772621530006,9.957,90.379,90.309,26.99071548]
[1772621530403,4.19108448,90.41,90.309,26.99071548]
[1772621531104,10.15454137,90.413,90.32,26.92808727]
[1772621531305,11.06,90.419,90.32,26.92808727]
[1772621531804,9.956,90.392,90.328,9.963]
[1772621532009,9.956,90.392,90.329,26.92818188]
[1772621532209,11.06,90.424,90.329,26.92818188]
[1772621532410,9.955,90.403,90.339,26.92818188]
[1772621532906,10.15454137,90.425,90.339,26.92818188]
[1772621533100,9.956,90.394,90.339,26.92818188]
[1772621533304,4.19108448,90.41,90.339,26.92818188]
[1772621533500,19.905,90.427,90.339,26.92818188]
[1772621533501,9.956,90.389,90.339,26.92818188]
[1772621534607,9.957,90.38,90.339,26.92818188]
[1772621536213,4.19108448,90.41,90.339,26.92818188]
[1772621536214,9.958,90.371,90.339,26.92818188]
[1772621536412,10.15454137,90.398,90.293,26.66693741]
[1772621536614,4.19108448,90.37,90.293,26.66693741]
[1772621536814,9.961,90.346,90.293,26.66693741]
[1772621537515,9.96,90.356,90.293,26.66693741]
[1772621539612,9.96,90.356,90.296,26.62596155]
[1772621542013,4.20369115,90.38,90.296,26.62596155]
[1772621542214,11.06,90.384,90.231,26.62729696]
[1772621542215,4.20369115,90.36,90.231,26.62729696]
[1772621542815,4.20369115,90.34,90.257,26.58864786]
[1772621543318,9.962,90.339,90.268,26.58864786]
[1772621543713,4.20369115,90.34,90.268,26.58864786]
[1772621546419,9.964,90.315,90.268,26.58864786]
[1772621547815,11.30097946,90.355,90.268,26.58864786]
[1772621548112,4.20369115,90.35,90.268,26.58864786]
[1772621548317,9.962,90.334,90.27,26.09853304]
[1772621548714,4.20369115,90.35,90.27,26.09853304]
[1772621548914,9.961,90.344,90.28,25.80354784]
[1772621549613,9.96,90.354,90.285,25.80354784]
[1772621549814,15.26369115,90.37,90.285,25.80354784]
[1772621550219,9.962,90.337,90.285,25.80354784]
[1772621550517,15.26369115,90.37,90.285,25.80354784]
[1772621551920,4.20369115,90.35,90.285,25.80354784]
[1772621552121,4.20369115,90.35,90.223,184.06186048]
[1772621552122,4.20369115,90.35,90.224,25.82232611]
[1772621552319,4.20369115,90.33,90.224,25.82232611]
[1772621552623,21.21454137,90.357,90.26,25.83557595]
[1772621552820,4.20369115,90.35,90.26,25.83557595]
[1772621553018,4.20369115,90.33,90.26,25.83557595]
[1772621553214,9.965,90.312,90.26,25.83557595]
[1772621553424,4.20369115,90.33,90.26,25.83557595]
[1772621554123,11.06,90.346,90.26,25.83557595]
[1772621554823,9.964,90.322,90.262,25.84861789]
[1772621555020,14.35823252,90.35,90.262,25.84861789]
[1772621555217,4.20369115,90.33,90.262,25.84861789]
[1772621555415,9.966,90.296,90.262,25.84861789]
[1772621556926,9.965,90.305,90.262,25.84861789]
[1772621557926,9.967,90.294,90.262,25.84861789]
[1772621558126,9.967,90.294,90.23,25.88583858]
[1772621559229,9.968,90.285,90.23,25.88583858]
[1772621560527,9.97,90.267,90.149,25.23245077]
[1772621560727,10.15454137,90.32,90.135,332.517]
[1772621560728,4.20369115,90.28,90.185,25.24357589]
[1772621560928,4.20369115,90.26,90.185,25.24357589]
[1772621561123,9.973,90.238,90.185,25.24357589]
[1772621561333,4.20369115,90.24,90.185,25.24357589]
[1772621561334,4.20369115,90.26,90.185,25.24357589]
[1772621562035,9.972,90.246,90.185,25.24357589]
[1772621563132,9.971,90.256,90.185,25.24357589]
[1772621565032,9.971,90.256,90.187,25.5755665]
[1772621566031,9.971,90.256,90.189,25.57588193]
[1772621567329,9.972,90.244,90.189,25.57588193]
[1772621567534,4.20369115,90.26,90.189,25.57588193]
[1772621567738,9.973,90.239,90.189,25.57588193]
[1772621569634,9.974,90.23,90.189,25.57588193]
[1772621570028,4.20369115,90.26,90.189,25.57588193]
[1772621570931,9.974,90.231,90.189,25.57588193]
[1772621574632,4.20369115,90.26,90.189,25.57588193]
[1772621576239,9.973,90.239,90.189,25.57588193]
[1772621578434,9.972,90.249,90.189,25.57588193]
[1772621579938,9.971,90.258,90.189,25.57588193]
[1772621580141,4.20369115,90.28,90.189,25.57588193]
[1772621581438,9.97,90.267,90.191,21.99783627]
[1772621581933,9.971,90.258,90.196,21.99690966]
[1772621582834,4.20369115,90.28,90.196,21.99690966]
[1772621583034,47.27955901,90.397,90.181,22.03122033]
[1772621583035,4.20369115,90.26,90.181,22.03122033]
[1772621583636,4.20369115,90.28,90.181,22.03122033]
[1772621583837,5.61783151,90.28,90.181,22.03122033]
[1772621584642,5.61783151,90.28,90.191,22.03032463]
[1772621585337,9.97,90.26,90.193,22.05782615]
[1772621587643,9.97,90.26,90.195,22.08739547]
[1772621588549,5.44798864,90.27,90.15,5.44798864]
[1772621588550,9.969,90.269,90.198,22.08739547]
[1772621590251,9.969,90.269,90.202,22.04344251]
[1772621592346,5.44798864,90.27,90.202,22.04344251]
[1772621592546,155.013,90.313,90.141,22.0790495]
[1772621592547,5.44798864,90.25,90.141,22.0790495]
[1772621593149,9.97,90.267,90.2,22.12790367]
[1772621593948,9.969,90.276,90.202,22.12716331]
[1772621595150,9.969,90.276,90.208,9.976]
[1772621595456,5.44798864,90.3,90.209,22.06121551]
[1772621597352,20.53705263,90.33,90.179,19.959]
[1772621597353,10.17723823,90.308,90.215,21.92558012]
[1772621597654,10.17723823,90.312,90.215,21.92558012]
[1772621597854,9.97,90.265,90.215,21.92558012]
[1772621598351,5.44798864,90.32,90.215,21.92558012]
[1772621598352,5.44798864,90.27,90.215,21.92558012]
[1772621599062,9.97,90.268,90.215,21.92558012]
[1772621601759,9.97,90.26,90.215,21.92558012]
[1772621602953,9.969,90.269,90.215,21.92558012]
[1772621603455,10.17723823,90.284,90.215,21.92558012]
[1772621603959,10.17723823,90.285,90.215,21.92558012]
[1772621604161,10.17723823,90.284,90.218,22.23063152]
[1772621604459,2.28683706,90.27,90.218,22.23063152]
[1772621604657,11.06,90.3,90.218,22.23063152]
[1772621604658,10.17723823,90.283,90.218,22.23063152]
[1772621604855,2.28683706,90.27,90.218,22.23063152]
[1772621605557,2.28683706,90.28,90.218,22.23063152]
[1772621605960,2.28683706,90.28,90.224,9.974]
[1772621606159,2.28683706,90.28,90.171,20.25193363]
[1772621606160,2.28683706,90.3,90.231,21.08508072]
[1772621606758,2.28683706,90.31,90.251,21.11713827]
[1772621607563,2.28683706,90.32,90.253,21.11713827]
[1772621608559,10.17723823,90.338,90.253,21.11713827]
[1772621608864,10.17723823,90.324,90.258,21.2225678]
[1772621609060,5.43906028,90.31,90.258,21.2225678]
[1772621609364,10.17723823,90.321,90.258,21.2225678]
[1772621609564,10.17723823,90.327,90.258,21.2225678]
[1772621610061,5.43906028,90.33,90.258,21.2225678]
[1772621610463,10.17723823,90.328,90.258,21.2225678]
[1772621610665,10.17723823,90.323,90.258,21.2225678]
[1772621610864,10.17723823,90.338,90.258,21.2225678]
[1772621611164,15.61629851,90.34,90.258,21.2225678]
[1772621611360,9.964,90.315,90.258,21.2225678]
[1772621613561,9.963,90.326,90.258,21.2225678]
[1772621615257,9.963,90.326,90.22,5.43906028]
[1772621615258,9.963,90.326,90.26,21.41139649]
[1772621615560,9.962,90.335,90.26,21.41139649]
[1772621615965,9.962,90.335,90.263,21.41080013]
[1772621617968,5.43906028,90.34,90.263,21.41080013]
[1772621618764,10.17723823,90.338,90.263,21.41080013]
[1772621619165,10.17723823,90.337,90.263,21.41080013]
[1772621620167,21.23723823,90.336,90.263,21.41080013]
[1772621620461,9.965,90.309,90.263,21.41080013]
[1772621620666,5.43906028,90.32,90.263,21.41080013]
[1772621621063,5.43906028,90.34,90.263,21.41080013]
[1772621621267,10.17723823,90.352,90.263,21.41080013]
[1772621621455,10.17723823,90.356,90.263,21.41080013]
[1772621621660,11.06,90.358,90.263,21.41080013]
[1772621622257,5.43906028,90.36,90.266,21.40358798]
[1772621622258,9.963,90.331,90.266,21.40358798]
[1772621622665,21.23723823,90.355,90.266,21.40358798]
[1772621624265,9.963,90.323,90.266,21.40358798]
[1772621624763,9.964,90.315,90.266,21.40358798]
[1772621625567,9.963,90.324,90.266,21.40358798]
[1772621626565,9.962,90.332,90.266,21.40358798]
[1772621628167,5.43906028,90.34,90.266,21.40358798]
[1772621628969,9.962,90.336,90.269,21.34501508]
[1772621630565,2.28424251,90.31,90.269,21.34501508]
[1772621630770,2.28424251,90.3,90.246,21.31851341]
[1772621631464,2.28424251,90.29,90.246,21.31851341]
[1772621632572,5.44199827,90.32,90.246,21.31851341]
[1772621633369,9.966,90.299,90.246,21.31851341]
[1772621635267,9.965,90.309,90.246,21.31851341]
[1772621637275,5.44199827,90.32,90.246,21.31851341]
[1772621637473,10.17723823,90.317,90.246,21.31851341]
[1772621637674,10.17723823,90.316,90.246,21.31851341]
[1772621637877,10.17723823,90.317,90.246,21.31851341]
[1772621638076,5.44199827,90.3,90.246,21.31851341]
[1772621639171,10.17723823,90.319,90.246,21.31851341]
[1772621639577,9.966,90.297,90.246,21.31851341]
[1772621639972,10.17723823,90.313,90.246,21.31851341]
[1772621640173,5.44199827,90.3,90.184,21.31233671]
[1772621640377,9.968,90.281,90.184,21.31233671]
[1772621640772,11.06,90.295,90.211,21.32372257]
[1772621640974,5.44199827,90.28,90.211,21.32372257]
[1772621641176,9.969,90.27,90.211,21.32372257]
[1772621646393,5.44199827,90.28,90.169,21.35871774]
[1772621646581,5.44199827,90.26,90.169,21.35871774]
[1772621648290,5.44199827,90.26,90.158,1.92888083]
[1772621648291,9.971,90.256,90.181,21.35621233]
[1772621648684,5.44199827,90.26,90.181,21.35621233]
[1772621648891,5.44199827,90.24,90.181,21.35621233]
[1772621650188,5.44199827,90.22,90.161,21.34323651]
[1772621652289,9.975,90.218,90.161,21.34323651]
[1772621652489,2.29050138,90.2,90.161,21.34323651]
[1772621659994,2.29050138,90.19,90.161,21.34323651]
[1772621660599,2.29060838,90.19,90.161,21.34323651]
[1772621660995,2.29060838,90.2,90.161,21.34323651]
[1772621666610,2.29060838,90.22,90.161,21.34323651]
[1772621668505,2.29060838,90.21,90.161,21.34323651]
[1772621671111,2.29060838,90.2,90.161,21.34323651]
[1772621671710,2.29060838,90.22,90.161,21.34323651]
[1772621672111,2.29060838,90.21,90.161,21.34323651]
[1772621672812,2.29060838,90.22,90.161,21.34323651]
[1772621673107,9.975,90.219,90.164,21.12320118]
[1772621673311,2.29060838,90.21,90.164,21.12320118]
[1772621674013,2.29060838,90.22,90.164,21.12320118]
[1772621674210,2.29060838,90.21,90.164,21.12320118]
[1772621675003,2.29060838,90.22,90.164,21.12320118]
[1772621675603,9.973,90.237,90.165,21.11077435]
[1772621675801,2.29060838,90.23,90.171,21.11077435]
[1772621676602,12.26360838,90.24,90.181,21.11077435]
[1772621678113,2.29060838,90.24,90.191,21.10288992]
[1772621679316,2.29060838,90.23,90.161,21.04294857]
[1772621679514,11.06,90.281,90.161,21.04294857]
[1772621679515,2.29060838,90.22,90.161,21.04294857]
[1772621680112,2.29060838,90.23,90.164,21.04301772]
[1772621680317,2.29060838,90.24,90.171,21.04301772]
[1772621681516,2.29060838,90.24,90.181,21.13915547]
[1772621682320,12.26360838,90.24,90.181,21.13915547]
[1772621683910,2.29060838,90.22,90.181,21.13915547]
[1772621684114,2.29060838,90.21,90.181,21.13915547]
[1772621684917,2.29060838,90.22,90.181,21.13915547]
[1772621687715,9.974,90.227,90.181,21.13915547]
[1772621687926,2.29060838,90.22,90.181,21.13915547]
[1772621688314,9.975,90.215,90.181,21.13915547]
[1772621688623,2.29060838,90.2,90.167,21.23745692]
[1772621689220,9.975,90.215,90.167,21.23745692]
[1772621689425,2.29060838,90.21,90.167,21.23745692]
[1772621690622,2.29060838,90.19,90.167,21.23745692]
[1772621690828,2.29060838,90.19,90.118,1.92984353]
[1772621690829,2.29060838,90.19,90.133,21.21892335]
[1772621691126,2.29060838,90.17,90.133,21.21892335]
[1772621691323,2.29060838,90.16,90.102,9.988]
[1772621691525,2.29060838,90.15,90.103,21.21892335]
[1772621693025,2.29060838,90.14,90.103,21.21892335]
[1772621694135,2.29060838,90.13,90.072,21.12155448]
[1772621694324,2.29060838,90.12,90.072,21.12155448]
[1772621697326,2.29060838,90.13,90.072,21.12155448]
[1772621697530,2.29060838,90.12,90.072,21.12155448]
[1772621697832,2.29060838,90.13,90.072,21.12155448]
[1772621698930,2.29060838,90.12,90.072,21.12155448]
[1772621699327,0.53881464,90.151,90.056,21.10908522]
[1772621699527,155.263,90.167,90.056,21.10908522]
[1772621699528,2.29060838,90.1,90.056,21.10908522]
[1772621701234,0.96128321,90.119,90.061,18.64058858]
[1772621702136,2.29060838,90.11,90.061,18.64058858]
[1772621704439,2.29060838,90.1,90.061,18.64058858]
[1772621704741,0.81443658,90.117,90.061,18.64058858]
[1772621704742,2.29060838,90.11,90.061,18.64058858]
[1772621705238,2.29060838,90.12,90.061,18.64058858]
[1772621707938,2.29060838,90.11,90.061,18.64058858]
[1772621708337,2.29060838,90.1,90.061,18.64058858]
[1772621708838,2.29060838,90.09,90.034,18.7726158]
[1772621710141,2.29060838,90.1,90.034,18.7726158]
[1772621710543,2.29060838,90.1,90.04,18.77250017]
[1772621710845,2.29060838,90.11,90.051,18.76995488]
[1772621712341,2.29060838,90.11,90.052,18.76984627]
[1772621712651,2.29060838,90.09,90.052,18.76984627]
[1772621714935,9.989,90.092,90.052,18.76984627]
[1772621716044,2.29060838,90.1,90.052,18.76984627]
[1772621717046,9.988,90.102,90.052,18.76984627]
[1772621717246,2.29060838,90.1,90.052,18.76984627]
[1772621719440,0.70676513,90.11,90.052,18.76984627]
[1772621719643,2.29060838,90.1,90.052,18.76984627]
[1772621720447,2.29545416,90.1,90.052,18.76984627]
[1772621723749,9.988,90.099,90.052,18.76984627]
[1772621723950,2.29545416,90.09,90.052,18.76984627]
[1772621724756,11.05405406,90.099,90.052,18.76984627]
[1772621727752,2.29545416,90.08,90.032,18.60994888]
[1772621727951,2.29545416,90.06,90.011,18.60994888]
[1772621728565,2.29545416,90.06,90.022,18.60994888]
[1772621730964,2.29545416,90.07,90.022,18.60994888]
[1772621732059,9.991,90.076,90.022,18.60994888]
[1772621732261,2.29545416,90.07,90.024,18.95356668]
[1772621732767,2.29545416,90.08,90.024,18.95356668]
[1772621732970,2.29545416,90.08,90.031,18.95707598]
[1772621733168,9.99,90.085,90.031,18.95707598]
[1772621733369,9.991,90.077,90.036,18.95707598]
[1772621733569,2.29545416,90.07,90.036,18.95707598]
[1772621734268,2.29545416,90.05,90.017,18.95698367]
[1772621734969,2.29545416,90.06,90.017,18.95698367]
[1772621735563,2.29545416,90.07,90.017,18.95698367]
[1772621737267,2.29545416,90.07,90.019,18.69286552]
[1772621741878,1.43301672,90.075,90.019,18.69286552]
[1772621742073,9.991,90.076,90.019,18.69286552]
[1772621743477,2.29545416,90.07,90.019,18.69286552]
[1772621743678,2.29545416,90.06,90.019,18.69286552]
[1772621743879,3.67098784,90.06,90.019,18.69286552]
[1772621744778,2.29545416,90.05,90.006,18.4538551]
[1772621745383,1.35914199,90.059,90.007,9.998]
[1772621745582,2.29545416,90.06,90.008,18.4538551]
[1772621746283,2.29545416,90.07,90.008,18.4538551]
[1772621747284,1.21802867,90.069,90.009,9.998]
[1772621747485,1.21802867,90.069,90.01,18.46893097]
[1772621748484,1.21802867,90.069,90.013,18.47171827]
[1772621749385,1.21802867,90.069,90.016,9.997]
[1772621749682,1.21802867,90.069,90.017,18.46045701]
[1772621750095,8.00928938,90.079,90.019,18.4616178]
[1772621750286,8.00928938,90.085,90.031,18.4616178]
[1772621750580,2.29545416,90.09,90.031,18.4616178]
[1772621750581,2.29545416,90.09,90.031,28.4576178]
[1772621750786,2.29545416,90.09,90.032,18.50607514]
[1772621752280,2.29545416,90.09,90.043,28.50117956]
[1772621752787,2.29545416,90.09,90.043,18.50717956]
[1772621753089,1.37718551,90.079,90.029,18.35476099]
[1772621753581,1.36295697,90.069,90.015,18.35476099]
[1772621753886,2.29545416,90.06,90.015,18.35476099]
[1772621758790,1.36295697,90.069,90.015,18.35476099]
[1772621759094,2.29545416,90.06,90.015,18.35476099]
[1772621759884,1.8816001,90.059,90.015,18.35476099]
[1772621760093,1.8816001,90.049,89.981,18.05378227]
[1772621760287,2.29545416,90.03,89.981,18.05378227]
[1772621760787,2.29545416,90.02,89.981,18.05378227]
[1772621760985,2.29545416,90.03,89.981,18.05378227]
[1772621761587,1.80176221,90.038,89.981,18.05378227]
[1772621762291,1.80176221,90.038,89.983,18.08814301]
[1772621763287,1.80176221,90.038,89.985,17.99045977]
[1772621763992,1.80176221,90.038,89.986,10.001]
[1772621764195,1.80176221,90.038,89.987,17.98962711]
[1772621764593,1.80176221,90.038,89.989,17.98962711]
[1772621765094,2.29545416,90.04,89.97,2.29545416]
[1772621765095,2.29545416,90.04,89.999,18.04501578]
[1772621765793,1.84101029,90.061,89.999,18.04501578]
[1772621765995,2.29545416,90.05,89.999,18.04501578]
[1772621766297,2.29545416,90.06,90.01,18.04613044]
[1772621766891,2.29545416,90.06,90.013,9.998]
[1772621767094,2.29545416,90.06,90.014,18.14849711]
[1772621768294,2.29545416,90.06,90.016,18.15135168]
[1772621769300,2.29545416,90.06,90.019,18.19531753]
[1772621770200,1.57166923,90.077,90.0,2.29545416]
[1772621770201,2.29545416,90.07,90.021,18.19634668]
[1772621770496,1.57166923,90.077,90.021,18.19634668]
[1772621770701,2.29545416,90.07,90.021,18.19634668]
[1772621771298,2.29545416,90.05,90.021,18.19634668]
[1772621771603,2.29545416,90.04,89.97,2.29545416]
[1772621771900,10.19476457,90.066,89.99,2.29545416]
[1772621772097,2.29545416,90.06,89.99,2.29545416]
[1772621772604,2.29545416,90.05,89.98,2.29545416]
[1772621772802,2.29545416,90.05,89.99,2.29545416]
[1772621773404,2.29545416,90.05,89.991,17.21317658]
[1772621773708,2.29545416,90.04,89.999,17.21317658]
[1772621774293,2.29545416,90.03,89.999,17.21317658]
[1772621775295,2.29545416,90.05,89.999,17.21317658]
[1772621775493,2.29545416,90.04,89.999,17.21317658]
[1772621778308,2.29545416,90.04,90.002,17.03506292]
[1772621779701,2.29545416,90.04,90.004,17.03506292]
[1772621779905,2.29545416,90.05,90.004,17.03506292]
[1772621781401,2.29545416,90.05,90.006,9.999]
[1772621781606,2.29545416,90.05,90.007,17.03506292]
[1772621782610,2.29777942,90.05,90.007,17.03506292]
[1772621783913,2.29777942,90.06,90.007,17.03506292]
[1772621785212,2.29777942,90.06,90.017,18.28635484]
[1772621785508,2.29777942,90.06,89.966,20.25193363]
[1772621785509,17.03143321,90.039,89.973,13.80071695]
[1772621785711,2.29777942,90.02,89.974,18.28635484]
[1772621785910,2.29777942,90.03,89.985,18.28635484]
[1772621786312,2.29777942,90.05,89.985,18.28635484]
[1772621787411,2.29777942,90.04,89.996,18.28635484]
[1772621788615,2.29777942,90.04,89.998,18.28635484]
[1772621788811,2.29777942,90.03,89.998,18.28635484]
[1772621792811,2.29777942,90.03,89.976,18.28635484]
[1772621793018,19.32921263,90.03,89.976,18.28635484]
[1772621794318,19.32921263,90.03,89.979,18.28635484]
[1772621794514,2.29777942,90.03,89.979,18.28635484]
[1772621795219,2.29777942,90.04,89.989,18.28635484]
[1772621795419,2.29777942,90.03,89.989,18.28635484]
[1772621800624,2.29777942,90.04,90.001,18.28635484]
[1772621800824,2.29777942,90.03,90.001,18.28635484]
[1772621804127,2.29777942,90.04,90.001,18.28635484]
[1772621807430,2.29777942,90.03,90.001,18.28635484]
[1772621810435,2.29777942,90.02,89.988,18.50937213]
[1772621810632,17.71225759,90.029,89.988,18.50937213]
[1772621812634,2.29777942,90.03,89.988,18.50937213]
[1772621813432,2.29777942,90.02,89.988,18.50937213]
[1772621815434,2.29777942,90.01,89.951,18.50937213]
[1772621815642,20.23647226,90.058,89.938,1.93366098]
[1772621815643,10.19476457,90.029,89.968,18.50937213]
[1772621815935,2.29777942,90.03,89.968,18.50937213]
[1772621816439,2.29777942,90.03,89.971,18.50937213]
[1772621817036,10.19476457,90.04,89.991,18.50937213]
[1772621817236,2.29777942,90.05,89.991,18.50937213]
[1772621818127,2.29777942,90.04,89.996,18.50937213]
[1772621818635,2.29777942,90.02,89.996,18.50937213]
[1772621819638,2.29777942,90.03,89.996,18.50937213]
[1772621819836,10.19476457,90.047,89.996,18.50937213]
[1772621820040,2.29777942,90.05,89.996,18.50937213]
[1772621821331,2.29777942,90.05,90.009,18.50937213]
[1772621822640,17.71225759,90.052,90.009,18.50937213]
[1772621823536,10.19476457,90.064,90.009,18.50937213]
[1772621823741,2.29777942,90.06,90.009,18.50937213]
[1772621824237,17.71225759,90.064,90.02,18.50937213]
[1772621824842,2.29777942,90.05,90.02,18.50937213]
[1772621825041,2.29777942,90.05,90.009,9.998]
[1772621825042,2.29777942,90.05,90.009,28.50737213]
[1772621825244,2.29777942,90.05,90.01,18.50937213]
[1772621825636,20.01003701,90.06,90.01,18.50937213]
[1772621830049,17.71225759,90.059,90.01,18.50937213]
[1772621832349,17.71225759,90.049,90.01,18.50937213]
[1772621832753,17.71225759,90.049,89.981,18.50937213]
[1772621832954,2.29777942,90.04,89.981,18.50937213]
[1772621833757,17.71225759,90.049,89.981,18.50937213]
[1772621833953,17.71225759,90.046,89.99,18.50937213]
[1772621835249,17.71225759,90.046,89.992,18.50937213]
[1772621835855,10.23448968,90.058,90.0,2.29777942]
[1772621836060,30.00303701,90.06,90.001,18.50937213]
[1772621836256,17.71225759,90.059,90.001,18.50937213]
[1772621836859,17.71225759,90.059,90.01,18.50937213]
[1772621839759,17.77575327,90.049,89.996,16.82566041]
[1772621839963,20.07353269,90.03,89.971,16.82566041]
[1772621840162,2.29777942,90.02,89.971,16.82566041]
[1772621840362,17.77575327,90.019,89.971,16.82566041]
[1772621840658,2.29777942,90.01,89.971,16.82566041]
[1772621840859,17.77575327,90.009,89.95,19.12343983]
[1772621841061,20.07353269,90.0,89.95,16.82566041]
[1772621842060,17.77575327,90.0,89.952,18.88880898]
[1772621843167,20.86845572,90.03,89.965,18.88880898]
[1772621843864,2.30003266,90.02,89.965,18.88880898]
[1772621844668,2.30003266,90.02,89.967,10.003]
[1772621844864,2.30003266,90.02,89.968,18.88880898]
[1772621845067,28.56442306,90.029,89.968,18.88880898]
[1772621845363,18.56842306,90.029,89.972,18.88880898]
[1772621845765,18.56842306,90.029,89.924,20.25193363]
[1772621845766,2.30003266,90.04,89.981,18.88880898]
[1772621845976,12.29503266,90.04,89.981,18.88880898]
[1772621846269,2.30003266,90.03,89.981,18.88880898]
[1772621846470,2.30003266,90.02,89.981,18.88880898]
[1772621846865,18.56842306,90.029,89.981,18.88880898]
[1772621847370,18.56842306,90.029,89.934,20.014]
[1772621847371,10.23448968,90.064,90.021,18.88880898]
[1772621847668,27.20781196,90.112,90.021,18.88880898]
[1772621847669,18.56842306,90.089,90.021,18.88880898]
[1772621847972,18.56842306,90.089,90.034,18.88880898]
[1772621848564,13.49075441,90.12,89.994,13.80071695]
[1772621848565,18.56842306,90.107,90.045,18.88880898]
[1772621848761,10.23448968,90.123,90.045,18.88880898]
[1772621849068,18.56842306,90.119,90.061,18.88880898]
[1772621849469,18.56842306,90.135,90.071,18.88880898]
[1772621849872,1.93177718,90.156,90.071,18.88880898]
[1772621849873,20.86845572,90.12,90.071,18.88880898]
[1772621850569,2.30003266,90.11,90.056,18.88880898]
[1772621850767,20.86845572,90.11,90.056,18.88880898]
[1772621850967,2.30003266,90.08,90.041,18.88880898]
[1772621852066,20.71784102,90.09,90.041,18.88880898]
[1772621854467,2.30003266,90.08,90.041,18.88880898]
[1772621855069,20.71784102,90.09,90.041,18.88880898]
[1772621855973,2.30003266,90.08,90.041,18.88880898]
[1772621860478,20.71784102,90.09,90.041,18.88880898]
[1772621864473,2.30003266,90.08,90.041,18.88880898]
[1772621864871,2.30003266,90.07,90.027,9.996]
[1772621865475,2.30003266,90.07,90.027,18.88880898]
[1772621866080,19.07863841,90.08,90.027,18.88880898]
[1772621866280,19.07863841,90.08,90.037,18.88880898]
[1772621866685,2.30003266,90.09,90.037,18.88880898]
[1772621867378,2.30003266,90.08,90.037,18.88880898]
[1772621868178,2.30003266,90.07,90.011,16.11519193]
[1772621868786,2.30003266,90.07,90.03,16.11519193]
[1772621872393,2.30003266,90.06,90.011,16.11519193]
[1772621872593,2.30003266,90.05,90.011,16.11519193]
[1772621873991,2.30003266,90.04,90.011,16.11519193]
[1772621874190,2.30003266,90.04,90.0,26.11419193]
[1772621874383,2.30003266,90.04,90.0,16.11519193]
[1772621874582,2.30003266,90.03,90.0,16.11519193]
[1772621875389,2.30003266,90.04,90.0,16.11519193]
[1772621875889,2.30003266,90.05,90.0,16.11519193]
[1772621876584,2.30003266,90.06,90.0,16.11519193]
[1772621877191,2.30003266,90.06,90.012,16.11519193]
[1772621877396,2.30003266,90.07,90.012,16.11519193]
[1772621879087,2.30003266,90.06,90.012,16.11519193]
[1772621879287,2.30003266,90.06,90.019,16.11519193]
[1772621879685,2.30003266,90.05,90.019,16.11519193]
[1772621881091,2.30003266,90.06,90.019,16.11519193]
[1772621882296,2.30003266,90.06,90.02,9.997]
[1772621882494,2.30003266,90.06,90.019,16.11519193]
[1772621882495,2.30003266,90.06,90.021,16.11519193]
[1772621883293,2.30003266,90.06,90.022,9.997]
[1772621883490,2.30003266,90.07,90.023,16.11519193]